bitfinex/quotes_BTCUSD_20250617
["timestamp","ask_amount","ask_price","bid_price","bid_amount"]
[1750173185703,11.52677572,104760.0,104750.0,1.76964885]
[1750173185891,11.52677572,104760.0,104750.0,1.89316585]
[1750173186355,11.52677572,104760.0,104750.0,2.17168285]
[1750173186566,11.52677572,104760.0,104750.0,2.04314985]
[1750173186776,11.52677572,104760.0,104750.0,1.94316585]
[1750173187213,11.52677572,104760.0,104750.0,1.94312585]
[1750173187663,11.52677572,104760.0,104750.0,1.89312585]
[1750173187907,11.52677572,104760.0,104750.0,2.03018585]
[1750173188124,11.52677572,104760.0,104750.0,2.08018585]
[1750173188339,11.52677572,104760.0,104750.0,2.29086985]
[1750173188556,11.52677572,104760.0,104750.0,2.14288585]
[1750173188812,11.52677572,104760.0,104750.0,2.09288585]
[1750173189030,11.52677572,104760.0,104750.0,1.68253843]
[1750173189256,11.52677572,104760.0,104750.0,2.14288585]
[1750173189911,11.52677572,104760.0,104750.0,2.09288585]
[1750173190131,11.52677572,104760.0,104750.0,2.14280585]
[1750173190865,11.52677572,104760.0,104750.0,2.09280585]
[1750173191078,11.52677572,104760.0,104750.0,2.14280585]
[1750173191531,11.46127047,104760.0,104750.0,3.82323285]
[1750173191771,10.81389384,104760.0,104750.0,3.95194027]
[1750173191984,10.76616142,104760.0,104750.0,4.23350027]
[1750173192205,10.67069658,104760.0,104750.0,4.23350027]
[1750173192427,9.75966182,104760.0,104750.0,4.25850027]
[1750173192645,9.65898175,104760.0,104750.0,4.25850027]
[1750173192865,9.56476846,104760.0,104750.0,4.25850027]
[1750173193083,9.51703604,104760.0,104750.0,4.25850027]
[1750173193296,9.4099077,104760.0,104750.0,4.25850027]
[1750173193512,9.31778291,104760.0,104750.0,4.25850027]
[1750173193740,9.31678291,104760.0,104750.0,4.25850027]
[1750173194021,9.26450401,104760.0,104750.0,4.25850027]
[1750173194237,9.23530401,104760.0,104750.0,4.25850027]
[1750173194461,9.16706272,104760.0,104750.0,4.25850027]
[1750173194683,8.98791995,104760.0,104750.0,4.25850027]
[1750173194900,8.92548753,104760.0,104750.0,4.25850027]
[1750173195111,8.91594105,104760.0,104750.0,4.25850027]
[1750173195357,8.87959457,104760.0,104750.0,4.25850027]
[1750173195563,8.83186215,104760.0,104750.0,4.25850027]
[1750173195797,8.7841441,104760.0,104750.0,4.25850027]
[1750173196019,8.688708,104760.0,104750.0,4.25830027]
[1750173196475,6.149018,104760.0,104750.0,4.25830027]
[1750173196698,6.07511275,104760.0,104750.0,4.11570027]
[1750173196933,6.06629276,104760.0,104750.0,4.11570027]
[1750173197162,6.06030276,104760.0,104750.0,4.11570027]
[1750173197618,5.15463996,104760.0,104750.0,4.11570027]
[1750173197855,4.5851714,104760.0,104750.0,4.30300027]
[1750173198086,4.39361853,104760.0,104750.0,4.30300027]
[1750173198305,4.33260113,104760.0,104750.0,4.30300027]
[1750173198539,4.16316425,104760.0,104750.0,4.30300027]
[1750173198760,4.15362064,104760.0,104750.0,4.02164027]
[1750173198982,4.03146704,104760.0,104750.0,4.02164027]
[1750173199234,3.98374899,104760.0,104750.0,2.97594543]
[1750173199469,3.97420538,104760.0,104750.0,4.15280027]
[1750173199697,3.91648733,104760.0,104750.0,4.15280027]
[1750173199929,3.85922567,104760.0,104750.0,4.15280027]
[1750173200158,3.80396401,104760.0,104750.0,4.15280027]
[1750173200370,3.78539287,104760.0,104750.0,4.15280027]
[1750173200582,3.72713121,104760.0,104750.0,4.15280027]
[1750173200810,3.68041316,104760.0,104750.0,4.07772027]
[1750173201027,3.63269511,104760.0,104750.0,4.07772027]
[1750173201242,3.63269511,104760.0,104750.0,3.74237285]
[1750173201460,3.58697706,104760.0,104750.0,3.74237285]
[1750173201686,3.53925901,104760.0,104750.0,2.46002543]
[1750173201911,3.53925901,104760.0,104750.0,3.21129285]
[1750173202145,3.53925901,104760.0,104750.0,3.08194543]
[1750173202374,3.53925901,104760.0,104750.0,3.49229285]
[1750173202582,3.53925901,104760.0,104750.0,3.08194543]
[1750173202807,3.53925901,104760.0,104750.0,3.49229285]
[1750173203513,3.49153635,104760.0,104750.0,3.49229285]
[1750173203731,3.44381369,104760.0,104750.0,3.49229285]
[1750173204171,3.34836837,104760.0,104750.0,3.90164027]
[1750173204407,3.28513742,104760.0,104750.0,3.49129285]
[1750173204632,3.23741476,104760.0,104750.0,3.90164027]
[1750173204847,3.1896921,104760.0,104750.0,3.90164027]
[1750173205066,3.14196944,104760.0,104750.0,3.49129285]
[1750173205286,3.09424678,104760.0,104750.0,3.08094543]
[1750173205504,3.09424678,104760.0,104750.0,3.49129285]
[1750173205732,3.08084679,104760.0,104750.0,3.49129285]
[1750173205951,3.03312413,104760.0,104750.0,3.08094543]
[1750173206182,2.98540147,104760.0,104750.0,3.49129285]
[1750173206614,2.93767881,104760.0,104750.0,3.49129285]
[1750173206837,2.88995615,104760.0,104750.0,3.49129285]
[1750173207079,2.84223349,104760.0,104750.0,3.49129285]
[1750173207511,2.79451083,104760.0,104750.0,3.49129285]
[1750173207724,2.74679614,104760.0,104750.0,3.49129285]
[1750173207940,2.69908145,104760.0,104750.0,3.49129285]
[1750173208170,2.64489387,104760.0,104750.0,3.93029127]
[1750173208442,2.58288509,104760.0,104750.0,3.51998385]
[1750173208656,2.53586509,104760.0,104750.0,3.66998385]
[1750173208870,2.50376509,104760.0,104750.0,3.66998385]
[1750173209085,2.45734509,104760.0,104750.0,3.66998385]
[1750173209297,2.31456571,104760.0,104750.0,3.66998385]
[1750173209528,2.25539971,104760.0,104750.0,3.66998385]
[1750173209769,2.08736678,104760.0,104750.0,4.08033127]
[1750173209978,2.05694678,104760.0,104750.0,4.08033127]
[1750173210197,1.98369445,104760.0,104750.0,3.25963643]
[1750173210424,1.98129445,104760.0,104750.0,3.66998385]
[1750173210652,1.96875152,104760.0,104750.0,3.66998385]
[1750173210876,1.73264908,104760.0,104750.0,3.46306385]
[1750173211101,1.70397908,104760.0,104750.0,3.87004385]
[1750173211348,1.65726439,104760.0,104750.0,3.87004385]
[1750173211790,1.6095497,104760.0,104750.0,3.87004385]
[1750173212020,1.48811636,104760.0,104750.0,3.87004385]
[1750173212463,1.46571636,104760.0,104750.0,3.87004385]
[1750173212690,1.41800167,104760.0,104750.0,3.87004385]
[1750173212910,1.37028698,104760.0,104750.0,3.87004385]
[1750173213361,1.32257229,104760.0,104750.0,3.87004385]
[1750173213588,1.2748576,104760.0,104750.0,3.87004385]
[1750173213805,1.2468576,104760.0,104750.0,3.87004385]
[1750173214032,1.19914291,104760.0,104750.0,3.87004385]
[1750173214475,1.15142858,104760.0,104750.0,3.79504385]
[1750173214694,1.12402858,104760.0,104750.0,3.87004385]
[1750173215030,1.07631425,104760.0,104750.0,3.45969643]
[1750173215140,1.07631425,104760.0,104750.0,3.87004385]
[1750173215363,1.02859992,104760.0,104750.0,3.87004385]
[1750173215812,0.98088559,104760.0,104750.0,3.87004385]
[1750173216258,0.93317126,104760.0,104750.0,3.87004385]
[1750173216496,0.92839782,104760.0,104750.0,3.87004385]
[1750173216712,0.67066977,104760.0,104750.0,4.57299127]
[1750173216929,0.60774977,104760.0,104750.0,4.57299127]
[1750173217153,0.59506691,104760.0,104750.0,4.57299127]
[1750173217370,0.51919679,104760.0,104750.0,4.57299127]
[1750173217598,0.46455393,104760.0,104750.0,4.57299127]
[1750173217822,0.4168396,104760.0,104750.0,4.16264385]
[1750173218050,0.39178991,104760.0,104750.0,4.16264385]
[1750173218266,0.36053736,104760.0,104750.0,4.16220385]
[1750173218482,0.31282303,104760.0,104750.0,4.16220385]
[1750173218706,0.37372303,104760.0,104750.0,1.94745558]
[1750173218942,0.78407045,104760.0,104750.0,0.40405758]
[1750173219188,0.78407045,104760.0,104750.0,0.45405758]
[1750173219413,0.78407045,104760.0,104750.0,0.57877758]
[1750173219655,1.53541787,104760.0,104750.0,0.25197758]
[1750173219877,1.53441787,104760.0,104750.0,0.1844668]
[1750173220100,1.53341787,104760.0,104750.0,0.34209758]
[1750173220317,1.53341787,104760.0,104750.0,0.29053672]
[1750173220539,1.50321787,104760.0,104750.0,0.42700262]
[1750173220769,1.57921189,104760.0,104750.0,0.27142438]
[1750173220994,1.56866709,104760.0,104750.0,0.47730438]
[1750173221429,0.21956874,104750.0,104740.0,0.19098901]
[1750173221660,0.34,104740.0,104730.0,0.21007098]
[1750173221882,0.80630429,104740.0,104730.0,0.51215274]
[1750173222105,0.34,104740.0,104730.0,0.51215274]
[1750173222322,0.75034742,104740.0,104730.0,0.51211274]
[1750173222786,0.34,104750.0,104740.0,0.21959025]
[1750173223028,0.75034742,104750.0,104740.0,0.31583201]
[1750173223244,0.75034742,104750.0,104740.0,0.52159201]
[1750173223245,0.78463772,104750.0,104740.0,0.52159201]
[1750173223458,0.78463772,104750.0,104740.0,0.52659201]
[1750173224333,0.78463772,104750.0,104740.0,0.2108]
[1750173224334,0.81327568,104750.0,104740.0,0.2108]
[1750173224549,0.80373015,104750.0,104740.0,0.22459025]
[1750173224762,0.8132755,104750.0,104740.0,0.42076344]
[1750173224977,0.82282185,104750.0,104740.0,0.43031025]
[1750173225192,1.00420737,104750.0,104740.0,0.41417636]
[1750173226291,0.75134742,104750.0,104740.0,0.32537918]
[1750173226503,0.002,104750.0,104740.0,0.32537918]
[1750173226715,0.41234742,104750.0,104740.0,0.53101918]
[1750173226946,0.002,104750.0,104740.0,0.53101918]
[1750173227394,0.001,104750.0,104740.0,0.53101918]
[1750173227622,0.41134742,104750.0,104740.0,0.53201918]
[1750173227916,0.82366446,104750.0,104740.0,0.53201918]
[1750173228548,0.75034742,104750.0,104740.0,0.53201918]
[1750173228976,0.75034742,104750.0,104740.0,0.32741918]
[1750173229251,0.75034742,104750.0,104740.0,0.53293918]
[1750173230734,0.34,104750.0,104740.0,0.53293918]
[1750173230969,0.31182303,104760.0,104750.0,0.21956929]
[1750173231183,0.31182303,104760.0,104750.0,0.31581105]
[1750173232039,0.65182303,104760.0,104750.0,0.31581105]
[1750173234292,0.31182303,104760.0,104750.0,0.3931519]
[1750173234955,0.31182303,104760.0,104750.0,0.3991519]
[1750173235184,0.31182303,104760.0,104750.0,0.32181105]
[1750173235400,0.31182303,104760.0,104750.0,0.60013105]
[1750173235614,0.31182303,104760.0,104750.0,0.60001105]
[1750173235848,0.31182303,104760.0,104750.0,0.60301105]
[1750173236502,0.72217045,104760.0,104750.0,0.52989105]
[1750173236723,1.1343875,104760.0,104750.0,0.32481105]
[1750173236945,1.1343875,104760.0,104750.0,0.52381105]
[1750173237223,1.1343875,104760.0,104750.0,0.32381105]
[1750173237457,1.1343875,104760.0,104750.0,0.52881105]
[1750173238101,1.1343875,104760.0,104750.0,0.52381105]
[1750173238313,1.1343875,104760.0,104750.0,0.52681105]
[1750173238551,1.1343875,104760.0,104750.0,0.52381105]
[1750173238774,1.06217045,104760.0,104750.0,0.52381105]
[1750173238998,1.06217045,104760.0,104750.0,0.52581105]
[1750173239660,0.65182303,104760.0,104750.0,0.52581105]
[1750173240119,1.06217045,104760.0,104750.0,0.52581105]
[1750173240832,1.06217045,104760.0,104750.0,0.52565105]
[1750173241124,0.65182303,104760.0,104750.0,0.52565105]
[1750173241343,1.06217045,104760.0,104750.0,0.52565105]
[1750173242030,0.65182303,104760.0,104750.0,0.52173105]
[1750173242268,0.65182303,104760.0,104750.0,0.59361105]
[1750173242533,0.31182303,104760.0,104750.0,0.65541105]
[1750173246363,0.31182303,104760.0,104750.0,0.37869105]
[1750173246588,0.72217045,104760.0,104750.0,0.31689105]
[1750173246815,0.72217045,104760.0,104750.0,0.52129105]
[1750173247290,0.72217045,104760.0,104750.0,0.52125105]
[1750173247527,0.31182303,104760.0,104750.0,0.52125105]
[1750173247755,0.31182303,104760.0,104750.0,0.52121105]
[1750173248973,0.72217045,104760.0,104750.0,0.52121105]
[1750173249195,0.31182303,104760.0,104750.0,0.52121105]
[1750173249409,0.72217045,104760.0,104750.0,0.52121105]
[1750173249627,0.7943875,104760.0,104750.0,0.52121105]
[1750173249840,0.72217045,104760.0,104750.0,0.52121105]
[1750173250487,0.31182303,104760.0,104750.0,0.52121105]
[1750173251350,0.72217045,104760.0,104750.0,0.52121105]
[1750173251990,0.31182303,104760.0,104750.0,0.52121105]
[1750173252202,0.31182303,104760.0,104750.0,0.58561105]
[1750173252420,0.31182303,104760.0,104750.0,0.52121105]
[1750173252906,0.31182303,104760.0,104750.0,0.6001519]
[1750173253126,0.29630621,104760.0,104750.0,0.67630249]
[1750173253825,0.29630621,104760.0,104750.0,0.6001519]
[1750173254267,0.29630621,104760.0,104750.0,0.5951519]
[1750173254493,0.29630621,104760.0,104750.0,0.5991519]
[1750173254717,0.29630621,104760.0,104750.0,0.6051519]
[1750173254940,0.28484944,104760.0,104750.0,0.6051519]
[1750173255590,0.28484944,104760.0,104750.0,0.64264641]
[1750173256701,0.28484944,104760.0,104750.0,0.63330902]
[1750173257595,0.28484944,104760.0,104750.0,0.58993105]
[1750173258268,0.28484944,104760.0,104750.0,0.38629105]
[1750173258488,0.28484944,104760.0,104750.0,0.66177105]
[1750173259163,0.28484944,104760.0,104750.0,0.6763119]
[1750173259391,0.28484944,104760.0,104750.0,0.70516514]
[1750173259860,0.26312871,104760.0,104750.0,1.11551256]
[1750173260384,0.26312871,104760.0,104750.0,0.50156514]
[1750173260616,0.26312871,104760.0,104750.0,0.70500514]
[1750173262631,0.26312871,104760.0,104750.0,0.42968514]
[1750173262845,0.26312871,104760.0,104750.0,0.70480514]
[1750173263066,0.24761464,104760.0,104750.0,0.70480514]
[1750173263962,0.24761464,104760.0,104750.0,0.50156514]
[1750173264226,0.24661464,104760.0,104750.0,0.70476514]
[1750173268527,0.13528302,104760.0,104750.0,4.40559398]
[1750173268746,0.13528302,104760.0,104750.0,3.99524656]
[1750173269607,0.13328302,104760.0,104750.0,3.25981914]
[1750173269826,0.13328302,104760.0,104750.0,3.87016656]
[1750173270052,0.13328302,104760.0,104750.0,4.14332656]
[1750173270270,0.14228302,104760.0,104750.0,4.14432656]
[1750173270714,0.13328302,104760.0,104750.0,4.14332656]
[1750173271167,0.07107653,104760.0,104750.0,4.84627398]
[1750173271391,0.48333014,104830.0,104820.0,0.21942267]
[1750173271620,0.48333014,104830.0,104820.0,0.51826443]
[1750173271621,0.07303028,104830.0,104820.0,0.51826443]
[1750173271845,0.4833777,104830.0,104820.0,0.51826443]
[1750173272086,0.8233777,104830.0,104820.0,0.51826443]
[1750173272305,0.5846751,104830.0,104820.0,0.51826443]
[1750173272525,0.34,104830.0,104820.0,0.51826443]
[1750173272753,0.00953588,104860.0,104850.0,0.20028593]
[1750173272754,0.21933998,104860.0,104850.0,0.20028593]
[1750173272973,1.06588412,104860.0,104850.0,0.40276593]
[1750173273190,1.06604883,104860.0,104850.0,0.40276593]
[1750173273406,1.06604883,104860.0,104850.0,0.40276602]
[1750173273624,1.05651249,104860.0,104850.0,0.41230327]
[1750173273844,1.05651249,104860.0,104850.0,0.40276602]
[1750173274055,1.05951249,104860.0,104850.0,0.40276602]
[1750173274269,1.06051249,104860.0,104850.0,0.20028602]
[1750173274519,1.06051249,104860.0,104850.0,0.40272602]
[1750173274721,1.06051249,104860.0,104840.0,0.21936387]
[1750173274722,0.34953707,104850.0,104840.0,0.21936387]
[1750173274916,0.85603371,104850.0,104840.0,0.51796563]
[1750173275124,0.85603361,104850.0,104840.0,0.51796563]
[1750173275335,0.92377077,104850.0,104840.0,0.51796563]
[1750173275756,1.13359358,104850.0,104840.0,0.50830811]
[1750173275964,0.95238224,104850.0,104840.0,0.51784581]
[1750173276172,0.93530729,104850.0,104840.0,0.51784581]
[1750173276381,0.92577013,104850.0,104840.0,0.51784581]
[1750173276598,0.9353071,104850.0,104840.0,0.51784581]
[1750173276803,0.91623325,104850.0,104840.0,0.51784581]
[1750173277022,0.82762082,104850.0,104840.0,0.51784581]
[1750173277246,0.0592,104850.0,104840.0,0.51784581]
[1750173277466,0.41134742,104850.0,104840.0,0.51784581]
[1750173278544,0.44304742,104850.0,104840.0,0.51784581]
[1750173278753,0.41134742,104850.0,104840.0,0.51784581]
[1750173278976,0.43619335,104850.0,104840.0,0.51784581]
[1750173279196,0.43619335,104850.0,104840.0,0.51884581]
[1750173279419,0.75034742,104850.0,104840.0,0.51884581]
[1750173280599,0.13859759,104860.0,104850.0,0.21935988]
[1750173280600,0.0010475,104860.0,104850.0,0.21935988]
[1750173280815,0.0010475,104860.0,104850.0,0.39175223]
[1750173281287,0.3410475,104860.0,104850.0,0.39175223]
[1750173281728,0.0010475,104860.0,104850.0,0.39175223]
[1750173282902,0.0010475,104860.0,104850.0,0.42355223]
[1750173283316,0.0020475,104860.0,104850.0,0.42355223]
[1750173283721,0.0020475,104860.0,104850.0,0.45485223]
[1750173283962,0.0010475,104860.0,104850.0,0.37870164]
[1750173284377,0.34,104870.0,104860.0,0.21970712]
[1750173284563,0.75082244,104870.0,104860.0,0.51750888]
[1750173285245,0.82994895,104870.0,104860.0,0.31594888]
[1750173285456,0.82994895,104870.0,104860.0,0.51742888]
[1750173285661,0.75082244,104870.0,104860.0,0.51742888]
[1750173286321,0.75082244,104870.0,104860.0,0.51702072]
[1750173286543,0.43942818,104870.0,104860.0,0.31558072]
[1750173286764,0.82889266,104870.0,104860.0,0.21933914]
[1750173286972,0.39947502,104870.0,104860.0,0.43023502]
[1750173287179,0.83842754,104870.0,104860.0,0.43023502]
[1750173287413,1.13482468,104870.0,104860.0,0.20980317]
[1750173287625,1.12528989,104870.0,104860.0,0.41112344]
[1750173287829,1.12528989,104870.0,104860.0,0.42061969]
[1750173288009,1.11575483,104870.0,104860.0,0.41108344]
[1750173288240,1.11575483,104870.0,104860.0,0.20980344]
[1750173288450,1.10621949,104870.0,104860.0,0.20980344]
[1750173288660,1.10621949,104870.0,104860.0,0.42057969]
[1750173288899,1.10621949,104870.0,104850.0,0.21082235]
[1750173288900,0.3989,104860.0,104850.0,0.21082235]
[1750173289111,0.91493271,104860.0,104850.0,0.41202235]
[1750173289317,0.92446896,104860.0,104850.0,0.41202235]
[1750173289521,0.92446868,104860.0,104850.0,0.21082235]
[1750173289738,1.13427176,104860.0,104850.0,0.2108229]
[1750173289991,0.52365751,104860.0,104850.0,0.22035969]
[1750173290208,0.93400502,104860.0,104850.0,0.42147969]
[1750173290412,0.94354145,104860.0,104850.0,0.42151969]
[1750173291037,0.93400502,104860.0,104850.0,0.42151969]
[1750173291471,1.13427194,104860.0,104850.0,0.00104]
[1750173291660,1.12473597,104860.0,104850.0,0.40232602]
[1750173292318,1.12473597,104860.0,104850.0,0.00104]
[1750173292319,1.1151999,104860.0,104850.0,0.00104]
[1750173292565,1.1151999,104860.0,104850.0,0.19178868]
[1750173292566,1.10566356,104860.0,104850.0,0.19178868]
[1750173292787,1.10566356,104860.0,104850.0,0.00104]
[1750173293651,0.69531614,104860.0,104850.0,0.20132611]
[1750173293887,1.10566356,104860.0,104850.0,0.19178868]
[1750173294115,1.12473578,104860.0,104850.0,0.20132611]
[1750173294325,1.12473578,104860.0,104850.0,0.00104]
[1750173294544,1.11519981,104860.0,104850.0,0.20184]
[1750173294759,1.11519981,104860.0,104850.0,0.2018]
[1750173294973,0.61838081,104840.0,104830.0,4e-05]
[1750173295199,0.61842239,104820.0,104810.0,0.20988688]
[1750173295421,0.61842239,104820.0,104800.0,0.20030056]
[1750173295422,0.34954052,104810.0,104800.0,0.20030056]
[1750173295640,0.02862411,104800.0,104790.0,0.29557079]
[1750173295860,0.61844424,104810.0,104800.0,0.20992301]
[1750173296066,0.43716301,104810.0,104800.0,0.21946435]
[1750173296252,0.65062961,104810.0,104800.0,0.20038149]
[1750173296513,0.6410889,104810.0,104800.0,0.20042917]
[1750173296747,0.65080105,104810.0,104800.0,0.20042917]
[1750173296956,0.45997957,104810.0,104800.0,0.22905393]
[1750173297174,0.78868141,104810.0,104800.0,0.22905393]
[1750173297384,0.78868141,104810.0,104800.0,0.32529569]
[1750173297385,0.41034742,104810.0,104800.0,0.32529569]
[1750173297592,0.75988685,104820.0,104810.0,0.2194436]
[1750173297836,0.75988685,104820.0,104810.0,0.31568536]
[1750173298045,1.08499926,104820.0,104810.0,0.41996387]
[1750173298253,0.86557577,104820.0,104810.0,0.4295043]
[1750173298468,0.84649664,104820.0,104810.0,0.4295043]
[1750173298676,0.77915289,104830.0,104820.0,0.21942267]
[1750173298881,0.76961419,104830.0,104820.0,0.21942267]
[1750173299117,0.7886915,104830.0,104820.0,0.31566443]
[1750173299331,0.90391877,104830.0,104820.0,0.31566443]
[1750173299960,0.88484072,104830.0,104820.0,0.31566443]
[1750173300384,0.90391877,104830.0,104820.0,0.31566443]
[1750173300616,0.90391877,104830.0,104820.0,0.51610443]
[1750173300617,0.88484072,104830.0,104820.0,0.51610443]
[1750173300825,0.86576341,104830.0,104820.0,0.51598443]
[1750173301035,0.76961419,104830.0,104820.0,0.51598443]
[1750173301242,0.76007576,104830.0,104820.0,0.51598443]
[1750173301446,0.76207576,104830.0,104820.0,0.51598443]
[1750173301872,0.76207576,104830.0,104820.0,0.31566443]
[1750173301873,0.79069196,104830.0,104820.0,0.31566443]
[1750173302078,1.00055527,104830.0,104820.0,0.51594443]
[1750173302287,1.09670449,104830.0,104820.0,0.51594452]
[1750173302502,0.48603283,104830.0,104820.0,0.52544404]
[1750173302710,0.89638025,104830.0,104820.0,0.52544404]
[1750173302901,0.90591941,104830.0,104820.0,0.52544404]
[1750173303365,1.09670449,104830.0,104820.0,0.52544404]
[1750173303581,1.09670522,104830.0,104820.0,0.52544404]
[1750173303797,1.07762754,104830.0,104820.0,0.40058344]
[1750173304013,0.85822498,104830.0,104820.0,0.43874263]
[1750173304271,0.89638052,104830.0,104820.0,0.43874263]
[1750173304528,0.01908068,104810.0,104800.0,0.21000996]
[1750173304746,0.36861911,104820.0,104810.0,0.2194436]
[1750173304962,0.35907913,104820.0,104810.0,0.2194436]
[1750173305171,0.56896246,104820.0,104810.0,0.2194436]
[1750173305378,0.56896246,104820.0,104810.0,0.21944369]
[1750173305612,0.66162479,104820.0,104810.0,0.22898412]
[1750173305828,0.67116495,104820.0,104810.0,0.21944369]
[1750173306049,0.67116495,104820.0,104800.0,0.30625227]
[1750173306050,0.54990262,104810.0,104800.0,0.30625227]
[1750173306272,0.75988776,104810.0,104800.0,0.51575361]
[1750173306485,0.75034742,104810.0,104800.0,0.51575361]
[1750173306693,0.75988785,104810.0,104800.0,0.51575361]
[1750173306910,0.76942819,104810.0,104800.0,0.51575361]
[1750173307143,0.76942819,104810.0,104800.0,0.21001051]
[1750173307144,1.07548039,104810.0,104800.0,0.21001051]
[1750173307356,1.08502128,104810.0,104800.0,0.42901328]
[1750173307777,1.0850221,104810.0,104800.0,0.41947194]
[1750173307984,1.0850221,104810.0,104800.0,0.20046917]
[1750173307985,1.05640017,104810.0,104800.0,0.20046917]
[1750173308212,1.10585919,104810.0,104800.0,0.1999275]
[1750173308657,1.53074746,104810.0,104800.0,8.75e-05]
[1750173309078,1.12040004,104810.0,104800.0,8.75e-05]
[1750173310359,1.53074746,104810.0,104800.0,8.75e-05]
[1750173310826,1.62698922,104810.0,104800.0,8.75e-05]
[1750173311055,0.67759047,104790.0,104780.0,4e-05]
[1750173311277,0.67759047,104790.0,104780.0,8.756e-05]
[1750173311278,1.31212385,104790.0,104780.0,8.756e-05]
[1750173312162,1.25478385,104790.0,104780.0,8.756e-05]
[1750173312390,1.05518385,104790.0,104780.0,8.756e-05]
[1750173312612,1.25474385,104790.0,104780.0,8.756e-05]
[1750173312825,1.28574385,104790.0,104780.0,8.756e-05]
[1750173313036,1.31294385,104790.0,104780.0,8.756e-05]
[1750173313497,1.40918561,104790.0,104780.0,8.756e-05]
[1750173314164,1.40918561,104790.0,104750.0,0.001]
[1750173314165,0.94124175,104770.0,104750.0,0.001]
[1750173314381,1.36413649,104760.0,104750.0,0.001]
[1750173314618,1.43469369,104760.0,104750.0,0.001]
[1750173314846,1.43469369,104760.0,104730.0,0.07523059]
[1750173314847,0.53094901,104740.0,104730.0,0.07523059]
[1750173315065,0.96538454,104740.0,104730.0,0.07523059]
[1750173315283,1.07523445,104740.0,104730.0,0.07570596]
[1750173315936,1.07523445,104740.0,104730.0,0.00047537]
[1750173317064,1.37575111,104730.0,104720.0,4e-05]
[1750173317287,1.47199287,104730.0,104720.0,4e-05]
[1750173317509,1.69987866,104730.0,104720.0,4e-05]
[1750173317747,1.79602788,104730.0,104720.0,4e-05]
[1750173317978,0.56460435,104730.0,104720.0,4e-05]
[1750173318224,0.96041092,104730.0,104720.0,0.19102548]
[1750173318471,0.96995928,104730.0,104720.0,0.21012338]
[1750173318684,0.77144341,104730.0,104720.0,0.28337201]
[1750173318909,0.98150682,104730.0,104720.0,0.28337201]
[1750173319129,1.07565659,104730.0,104720.0,0.27382357]
[1750173319337,1.06610869,104730.0,104720.0,0.20057457]
[1750173319549,1.06710869,104730.0,104720.0,0.21012347]
[1750173319789,1.05956051,104730.0,104720.0,0.20057457]
[1750173319997,1.05001224,104730.0,104720.0,4e-05]
[1750173320263,1.04801224,104730.0,104720.0,0.19102548]
[1750173320499,0.6472129,104730.0,104720.0,0.21212356]
[1750173320742,1.05756032,104730.0,104720.0,0.21212356]
[1750173320966,1.05756032,104730.0,104720.0,0.22167256]
[1750173321200,1.05756032,104730.0,104720.0,0.21212366]
[1750173321413,1.05756032,104730.0,104720.0,0.22167256]
[1750173321843,1.03846388,104730.0,104720.0,0.20257466]
[1750173322050,1.03846388,104730.0,104720.0,0.20257475]
[1750173322497,1.03846388,104730.0,104720.0,0.00204]
[1750173323834,1.03846388,104730.0,104720.0,0.20257475]
[1750173324041,1.03846388,104730.0,104720.0,0.00204]
[1750173325172,1.06714988,104730.0,104720.0,0.00204]
[1750173325610,0.72714988,104730.0,104720.0,0.00204]
[1750173327155,0.92586988,104730.0,104720.0,0.00204]
[1750173327362,0.72714988,104730.0,104720.0,0.00204]
[1750173327576,1.26586988,104730.0,104720.0,0.00204]
[1750173328236,1.81719991,104730.0,104720.0,0.00204]
[1750173328480,1.81719991,104730.0,104710.0,4e-05]
[1750173328481,0.21507542,104720.0,104710.0,4e-05]
[1750173328695,1.24256455,104720.0,104710.0,4e-05]
[1750173329126,1.21236455,104720.0,104710.0,4e-05]
[1750173330208,1.21236455,104720.0,104710.0,0.00204]
[1750173330209,1.1978237,104720.0,104710.0,0.00204]
[1750173330433,0.62043117,104720.0,104710.0,0.24364381]
[1750173330673,0.78854258,104720.0,104710.0,0.37129376]
[1750173330893,0.97952879,104720.0,104710.0,0.36174422]
[1750173331145,0.78854331,104720.0,104710.0,0.37129385]
[1750173331360,0.78854331,104720.0,104710.0,0.36174422]
[1750173331361,1.07567801,104720.0,104710.0,0.36174422]
[1750173331800,1.06612929,104720.0,104710.0,0.36174422]
[1750173332012,0.65578187,104720.0,104710.0,0.36174422]
[1750173332239,1.06612929,104720.0,104710.0,0.27604381]
[1750173332450,1.05658039,104720.0,104710.0,0.07549018]
[1750173332669,1.05658039,104720.0,104710.0,0.27604399]
[1750173333112,1.0470313,104720.0,104710.0,0.27604399]
[1750173333337,0.63668388,104720.0,104710.0,0.28559399]
[1750173333574,1.0470313,104720.0,104710.0,0.27604399]
[1750173334014,1.0470313,104720.0,104710.0,0.28559399]
[1750173334236,1.0470313,104720.0,104710.0,0.2951439]
[1750173334453,0.86559472,104720.0,104710.0,0.30469308]
[1750173334660,0.87514326,104720.0,104710.0,0.29514354]
[1750173334921,0.87514326,104720.0,104710.0,0.30469327]
[1750173334922,1.07567801,104720.0,104710.0,0.30469327]
[1750173335146,1.04703139,104720.0,104710.0,0.00204]
[1750173335365,1.45737881,104720.0,104710.0,0.19304372]
[1750173335590,1.04703139,104720.0,104710.0,0.19304372]
[1750173335801,1.04703139,104720.0,104710.0,0.2025939]
[1750173336021,1.04703139,104720.0,104710.0,0.2121439]
[1750173336240,1.04703139,104720.0,104710.0,0.25249381]
[1750173336454,1.04703139,104720.0,104710.0,0.26204363]
[1750173336673,1.04703139,104720.0,104710.0,0.03284]
[1750173336884,0.63668397,104720.0,104710.0,0.20259372]
[1750173337100,1.04703139,104720.0,104710.0,0.21214354]
[1750173337310,1.04703139,104720.0,104710.0,0.24354354]
[1750173337529,1.04703139,104720.0,104710.0,0.23399372]
[1750173337744,1.04703139,104720.0,104710.0,0.27644345]
[1750173337953,1.06612911,104720.0,104710.0,0.28599308]
[1750173338165,1.06612911,104720.0,104710.0,0.27644354]
[1750173338380,1.06612911,104720.0,104710.0,0.28599327]
[1750173338587,1.05658039,104720.0,104710.0,0.26689372]
[1750173338796,1.04703139,104720.0,104710.0,0.26689372]
[1750173339013,0.6271347,104720.0,104710.0,0.2668939]
[1750173339224,1.04703121,104720.0,104710.0,0.28599363]
[1750173339461,1.04703121,104720.0,104710.0,0.2668939]
[1750173339675,1.06949698,104720.0,104710.0,0.27644399]
[1750173339925,1.06949665,104720.0,104710.0,0.27644399]
[1750173340141,1.06949665,104720.0,104710.0,0.25734372]
[1750173340351,1.06949665,104720.0,104710.0,0.27644399]
[1750173340800,0.58209736,104720.0,104710.0,0.28599381]
[1750173341026,0.58209736,104720.0,104710.0,0.28599399]
[1750173341247,0.97334743,104720.0,104710.0,0.06634]
[1750173341680,0.97334743,104720.0,104710.0,0.25734372]
[1750173341905,0.97334743,104720.0,104710.0,0.2668939]
[1750173342118,1.06949665,104720.0,104710.0,0.27644399]
[1750173342329,1.05994756,104720.0,104710.0,0.07589018]
[1750173342560,1.05994756,104720.0,104710.0,0.06634]
[1750173342774,1.08802936,104720.0,104710.0,0.06634]
[1750173342997,1.08802936,104720.0,104710.0,0.00204]
[1750173343652,0.67768194,104720.0,104710.0,0.00204]